[Event "Early-Titled-Tuesday-Blitz-October-03-2023"]
[Site "Chess.com"]
[Date "2023.10.03"]
[Round "1"]
[White "Juicy_Fork"]
[Black "RobertoJBM"]
[Result "0-1"]
[WhiteElo "2467"]
[BlackElo "2821"]
[TimeControl "180+1"]
[EndTime "8:08:24 PDT"]
[Termination "RobertoJBM won by resignation"]

1. e4 {[%clk 0:03:00.9]} 1... c6 {[%clk 0:02:58.5]} 2. d4 {[%clk 0:03:00.6]}
2... d5 {[%clk 0:02:59.4]} 3. f3 {[%clk 0:03:01]} 3... g6 {[%clk 0:02:59.2]} 4.
Nc3 {[%clk 0:03:00]} 4... Bg7 {[%clk 0:02:59.4]} 5. e5 {[%clk 0:02:56.4]} 5...
h5 {[%clk 0:02:58.2]} 6. f4 {[%clk 0:02:54.1]} 6... Nh6 {[%clk 0:02:57.5]} 7.
Nf3 {[%clk 0:02:54.5]} 7... Bg4 {[%clk 0:02:55.9]} 8. h3 {[%clk 0:02:52.6]} 8...
Bxf3 {[%clk 0:02:55.3]} 9. Qxf3 {[%clk 0:02:53.5]} 9... Nf5 {[%clk 0:02:55.6]}
10. Qf2 {[%clk 0:02:47.2]} 10... Qb6 {[%clk 0:02:53.4]} 11. Ne2 {[%clk
0:02:45.5]} 11... h4 {[%clk 0:02:52.8]} 12. c3 {[%clk 0:02:44.4]} 12... e6
{[%clk 0:02:51.1]} 13. g4 {[%clk 0:02:43.4]} 13... hxg3 {[%clk 0:02:50.7]} 14.
Nxg3 {[%clk 0:02:43.6]} 14... Nxg3 {[%clk 0:02:47.7]} 15. Qxg3 {[%clk
0:02:44.5]} 15... Bf8 {[%clk 0:02:47.1]} 16. Bd3 {[%clk 0:02:41.6]} 16... Be7
{[%clk 0:02:45.3]} 17. O-O {[%clk 0:02:36.1]} 17... Nd7 {[%clk 0:02:40.4]} 18.
a4 {[%clk 0:02:30.4]} 18... a6 {[%clk 0:02:38.7]} 19. a5 {[%clk 0:02:29.7]}
19... Qc7 {[%clk 0:02:38.4]} 20. Bxg6 {[%clk 0:01:43.7]} 20... Rg8 {[%clk
0:02:36.7]} 21. f5 {[%clk 0:01:40.8]} 21... exf5 {[%clk 0:02:37]} 22. Bxf7+
{[%clk 0:01:39]} 22... Kxf7 {[%clk 0:02:35.3]} 23. Rxf5+ {[%clk 0:01:39.1]}
23... Ke6 {[%clk 0:01:35.1]} 24. Bg5 {[%clk 0:01:19.1]} 24... Raf8 {[%clk
0:01:08]} 25. Raf1 {[%clk 0:00:33.7]} 25... Rxf5 {[%clk 0:00:51.7]} 26. Rxf5
{[%clk 0:00:34.6]} 26... Kxf5 {[%clk 0:00:45.7]} 27. Qg4+ {[%clk 0:00:25]} 27...
Kg6 {[%clk 0:00:45.8]} 28. Bxe7+ {[%clk 0:00:25]} 28... Kh7 {[%clk 0:00:44.9]}
29. Bg5 {[%clk 0:00:25]} 29... Rxg5 {[%clk 0:00:27.2]} 30. Qxg5 {[%clk
0:00:25.9]} 30... Nf8 {[%clk 0:00:26.7]} 31. Qf5+ {[%clk 0:00:17.9]} 31... Kg8
{[%clk 0:00:26.1]} 32. e6 {[%clk 0:00:13.4]} 32... Qe7 {[%clk 0:00:18.1]} 33.
Qg4+ {[%clk 0:00:12]} 33... Kh7 {[%clk 0:00:17.7]} 34. Qh5+ {[%clk 0:00:11.7]}
34... Kg7 {[%clk 0:00:17.3]} 35. Qe5+ {[%clk 0:00:09.3]} 35... Kg6 {[%clk
0:00:17.1]} 36. Qg3+ {[%clk 0:00:07.1]} 36... Kf6 {[%clk 0:00:16.5]} 37. Qe5+
{[%clk 0:00:05.9]} 37... Kg6 {[%clk 0:00:15.1]} 38. Qg3+ {[%clk 0:00:06.8]}
38... Kh6 {[%clk 0:00:09.5]} 39. Qf4+ {[%clk 0:00:04.4]} 39... Kh7 {[%clk
0:00:07.9]} 40. Qf5+ {[%clk 0:00:03.6]} 40... Ng6 {[%clk 0:00:08.3]} 41. h4
{[%clk 0:00:02.3]} 41... Qxh4 {[%clk 0:00:07.9]} 42. Qf7+ {[%clk 0:00:02.5]}
42... Kh6 {[%clk 0:00:08.1]} 43. Kg2 {[%clk 0:00:02.5]} 43... Qe7 {[%clk
0:00:07]} 44. Qf5 {[%clk 0:00:02.2]} 44... Qg5+ {[%clk 0:00:06.9]} 45. Qxg5+
{[%clk 0:00:01.3]} 45... Kxg5 {[%clk 0:00:07.8]} 46. Kf3 {[%clk 0:00:02.2]}
46... Kf5 {[%clk 0:00:07.9]} 47. Kg3 {[%clk 0:00:02.4]} 47... Ne7 {[%clk
0:00:08.2]} 48. Kf2 {[%clk 0:00:02.4]} 48... Kxe6 {[%clk 0:00:09.1]} 49. Kf3
{[%clk 0:00:03.1]} 49... Kf5 {[%clk 0:00:10]} 50. Ke3 {[%clk 0:00:02.3]} 50...
Ng6 {[%clk 0:00:10.9]} 51. Kf3 {[%clk 0:00:02.7]} 51... Nf4 {[%clk 0:00:11.8]}
52. Ke3 {[%clk 0:00:03.3]} 52... Ne6 {[%clk 0:00:12.7]} 53. Kf3 {[%clk
0:00:03.8]} 53... Nc7 {[%clk 0:00:13.3]} 54. Ke3 {[%clk 0:00:04.4]} 54... Nb5
{[%clk 0:00:13.7]} 55. Kf3 {[%clk 0:00:05]} 55... Nd6 {[%clk 0:00:14.6]} 56. Ke3
{[%clk 0:00:05.5]} 56... Nc4+ {[%clk 0:00:15.2]} 57. Kd3 {[%clk 0:00:06]} 57...
Nxa5 {[%clk 0:00:16.1]} 58. Kc2 {[%clk 0:00:06.9]} 58... Nc4 {[%clk 0:00:16.3]}
59. Kb3 {[%clk 0:00:07.8]} 59... Nd6 {[%clk 0:00:17.2]} 60. Kb4 {[%clk
0:00:08.7]} 60... b6 {[%clk 0:00:17.1]} 61. b3 {[%clk 0:00:07.8]} 61... Ke4
{[%clk 0:00:17.2]} 62. Ka4 {[%clk 0:00:08.1]} 62... Kd3 {[%clk 0:00:16]} 63. Kb4
{[%clk 0:00:07.7]} 63... a5+ {[%clk 0:00:16.4]} 64. Ka4 {[%clk 0:00:07.8]} 64...
Kxc3 {[%clk 0:00:17.3]} 0-1

[Event "Early-Titled-Tuesday-Blitz-October-03-2023"]
[Site "Chess.com"]
[Date "2023.10.03"]
[Round "1"]
[White "Zapateado"]
[Black "AdvanceGuard4"]
[Result "0-1"]
[WhiteElo "2343"]
[BlackElo "2644"]
[TimeControl "180+1"]
[EndTime "8:08:25 PDT"]
[Termination "AdvanceGuard4 won by resignation"]

1. c4 {[%clk 0:02:59.3]} 1... Nf6 {[%clk 0:02:59.3]} 2. Nc3 {[%clk 0:03:00]}
2... e6 {[%clk 0:03:00.2]} 3. e4 {[%clk 0:03:00.7]} 3... d5 {[%clk 0:03:00.9]}
4. e5 {[%clk 0:03:01.3]} 4... d4 {[%clk 0:03:01]} 5. exf6 {[%clk 0:03:02.2]}
5... dxc3 {[%clk 0:03:01.5]} 6. bxc3 {[%clk 0:03:03.1]} 6... Qxf6 {[%clk
0:03:01.4]} 7. d4 {[%clk 0:03:04]} 7... c5 {[%clk 0:03:00.2]} 8. Nf3 {[%clk
0:03:04.9]} 8... h6 {[%clk 0:03:00.7]} 9. Bd3 {[%clk 0:03:01.4]} 9... Nc6 {[%clk
0:02:57.6]} 10. O-O {[%clk 0:02:49]} 10... cxd4 {[%clk 0:02:58]} 11. cxd4 {[%clk
0:02:49.9]} 11... Nxd4 {[%clk 0:02:58.6]} 12. Nxd4 {[%clk 0:02:50.7]} 12... Qxd4
{[%clk 0:02:59.2]} 13. Be3 {[%clk 0:02:51.4]} 13... Qf6 {[%clk 0:02:57.6]} 14.
Qb3 {[%clk 0:02:46.7]} 14... a6 {[%clk 0:02:15.7]} 15. a4 {[%clk 0:02:24.3]}
15... Bd6 {[%clk 0:02:08.4]} 16. Qb6 {[%clk 0:02:17]} 16... Qd8 {[%clk
0:01:52.5]} 17. Qb2 {[%clk 0:01:42.1]} 17... O-O {[%clk 0:01:49.1]} 18. Rfd1
{[%clk 0:01:41.4]} 18... Qe7 {[%clk 0:01:34.4]} 19. Bd4 {[%clk 0:01:34.1]} 19...
e5 {[%clk 0:01:33.1]} 20. Bc3 {[%clk 0:01:34.7]} 20... Bg4 {[%clk 0:01:20]} 21.
Be4 {[%clk 0:01:33.1]} 21... Bxd1 {[%clk 0:01:18]} 22. Rxd1 {[%clk 0:01:33.3]}
22... Rab8 {[%clk 0:01:17.3]} 23. a5 {[%clk 0:01:30.8]} 23... f5 {[%clk
0:01:11.1]} 24. Bd5+ {[%clk 0:01:31.3]} 24... Kh7 {[%clk 0:01:11.1]} 25. Qc2
{[%clk 0:01:21.4]} 25... e4 {[%clk 0:01:09.8]} 26. Bd4 {[%clk 0:01:17.7]} 26...
Bc5 {[%clk 0:01:07]} 27. Bxc5 {[%clk 0:01:13.8]} 27... Qxc5 {[%clk 0:01:07.9]}
28. Qc3 {[%clk 0:01:13.9]} 28... Rbd8 {[%clk 0:00:59.7]} 29. g4 {[%clk
0:01:11.3]} 29... fxg4 {[%clk 0:00:56.3]} 30. Bxe4+ {[%clk 0:01:11.9]} 30... Kh8
{[%clk 0:00:56.7]} 31. Rf1 {[%clk 0:01:10]} 31... Rd4 {[%clk 0:00:51.4]} 32.
Bxb7 {[%clk 0:01:06.2]} 32... Rxc4 {[%clk 0:00:45.5]} 33. Qg3 {[%clk 0:01:05.6]}
33... Qxa5 {[%clk 0:00:44.4]} 34. Qd6 {[%clk 0:01:02]} 34... Qc5 {[%clk
0:00:32.7]} 35. Qxc5 {[%clk 0:00:58.9]} 35... Rxc5 {[%clk 0:00:33.6]} 36. Bxa6
{[%clk 0:00:59.8]} 36... Rcf5 {[%clk 0:00:32.3]} 37. Be2 {[%clk 0:00:59.5]}
37... Rf4 {[%clk 0:00:32.5]} 38. Kg2 {[%clk 0:00:59.7]} 38... h5 {[%clk
0:00:32.9]} 39. Kg3 {[%clk 0:00:59.8]} 39... g5 {[%clk 0:00:31.4]} 40. Kg2
{[%clk 0:00:38.2]} 40... Kg7 {[%clk 0:00:30.5]} 41. Kg3 {[%clk 0:00:28.7]} 41...
h4+ {[%clk 0:00:30.6]} 42. Kg2 {[%clk 0:00:29.2]} 42... R8f6 {[%clk 0:00:31.3]}
43. Bd3 {[%clk 0:00:26.8]} 43... g3 {[%clk 0:00:23.7]} 44. hxg3 {[%clk
0:00:22.6]} 44... hxg3 {[%clk 0:00:22.3]} 45. f3 {[%clk 0:00:23.4]} 45... Rd6
{[%clk 0:00:17.6]} 46. Be4 {[%clk 0:00:21.9]} 46... Kf6 {[%clk 0:00:16]} 47.
Kxg3 {[%clk 0:00:22]} 47... Rb6 {[%clk 0:00:14.1]} 48. Rh1 {[%clk 0:00:19]}
48... Rb3 {[%clk 0:00:10.5]} 49. Kf2 {[%clk 0:00:06.9]} 49... g4 {[%clk
0:00:09.5]} 50. Kg2 {[%clk 0:00:03]} 50... gxf3+ {[%clk 0:00:09.3]} 51. Bxf3
{[%clk 0:00:03]} 51... Rfxf3 {[%clk 0:00:09]} 52. Rh6+ {[%clk 0:00:03.9]} 52...
Kg7 {[%clk 0:00:09.3]} 53. Rd6 {[%clk 0:00:04.4]} 53... Rfd3 {[%clk 0:00:09.3]}
54. Rc6 {[%clk 0:00:03.4]} 54... Rd2+ {[%clk 0:00:09.5]} 55. Kf1 {[%clk
0:00:03.8]} 55... Rb1+ {[%clk 0:00:10.3]} 0-1

[Event "Early-Titled-Tuesday-Blitz-October-03-2023"]
[Site "Chess.com"]
[Date "2023.10.03"]
[Round "1"]
[White "Darko-Dimitrijevic"]
[Black "Herzog2012"]
[Result "1-0"]
[WhiteElo "2144"]
[BlackElo "2516"]
[TimeControl "180+1"]
[EndTime "8:08:30 PDT"]
[Termination "Darko-Dimitrijevic won by resignation"]

1. d4 {[%clk 0:02:58.8]} 1... Nf6 {[%clk 0:02:59.7]} 2. c4 {[%clk 0:02:58.8]}
2... e6 {[%clk 0:02:59.5]} 3. Nc3 {[%clk 0:02:57.9]} 3... Bb4 {[%clk 0:03:00.1]}
4. e3 {[%clk 0:02:56.5]} 4... O-O {[%clk 0:02:59.6]} 5. Nf3 {[%clk 0:02:56.2]}
5... b6 {[%clk 0:02:57.9]} 6. Bd3 {[%clk 0:02:54.9]} 6... Bb7 {[%clk 0:02:58.1]}
7. O-O {[%clk 0:02:54.5]} 7... d5 {[%clk 0:02:57.2]} 8. a3 {[%clk 0:02:53.4]}
8... Bxc3 {[%clk 0:02:50.7]} 9. bxc3 {[%clk 0:02:52.3]} 9... Nbd7 {[%clk
0:02:51.4]} 10. Qc2 {[%clk 0:02:50.9]} 10... c5 {[%clk 0:02:49.7]} 11. Bb2
{[%clk 0:02:47.2]} 11... Qe7 {[%clk 0:02:46.9]} 12. Rac1 {[%clk 0:02:45]} 12...
Rac8 {[%clk 0:02:39]} 13. Qb1 {[%clk 0:02:42.7]} 13... dxc4 {[%clk 0:02:34.6]}
14. Bxc4 {[%clk 0:02:41.3]} 14... e5 {[%clk 0:02:34.7]} 15. Nd2 {[%clk
0:02:27.9]} 15... cxd4 {[%clk 0:02:21.9]} 16. cxd4 {[%clk 0:02:27]} 16... e4
{[%clk 0:01:57.6]} 17. Be2 {[%clk 0:02:18.4]} 17... Bd5 {[%clk 0:01:51.9]} 18.
Rxc8 {[%clk 0:02:12.7]} 18... Rxc8 {[%clk 0:01:51.3]} 19. Rc1 {[%clk 0:02:12.5]}
19... Qd8 {[%clk 0:01:48.9]} 20. Bc3 {[%clk 0:01:58.9]} 20... Qc7 {[%clk
0:01:33.2]} 21. Ba6 {[%clk 0:01:57.2]} 21... Bb7 {[%clk 0:01:30]} 22. Be2 {[%clk
0:01:49.1]} 22... Nf8 {[%clk 0:01:00]} 23. g3 {[%clk 0:01:31.8]} 23... Ne6
{[%clk 0:00:56.9]} 24. h4 {[%clk 0:01:26.8]} 24... Qd7 {[%clk 0:00:48.3]} 25.
Bb5 {[%clk 0:01:21.1]} 25... Bc6 {[%clk 0:00:45.9]} 26. Ba6 {[%clk 0:01:20.5]}
26... Bb7 {[%clk 0:00:45.7]} 27. Bb5 {[%clk 0:01:19.6]} 27... Qd5 {[%clk
0:00:43.6]} 28. Be2 {[%clk 0:01:11.9]} 28... Qf5 {[%clk 0:00:41.7]} 29. Qb5
{[%clk 0:00:55.1]} 29... Qxb5 {[%clk 0:00:16.6]} 30. Bxb5 {[%clk 0:00:54.2]}
30... Nd5 {[%clk 0:00:17.3]} 31. Bb2 {[%clk 0:00:49.3]} 31... Rxc1+ {[%clk
0:00:16.7]} 32. Bxc1 {[%clk 0:00:49.3]} 32... f5 {[%clk 0:00:17.4]} 33. Nc4
{[%clk 0:00:45.4]} 33... Ndc7 {[%clk 0:00:08.3]} 34. Bd7 {[%clk 0:00:44.6]}
34... Bd5 {[%clk 0:00:08.9]} 35. Ne5 {[%clk 0:00:43.1]} 35... g6 {[%clk
0:00:08.4]} 36. Bd2 {[%clk 0:00:42.7]} 36... Kf8 {[%clk 0:00:08.8]} 37. Bb4+
{[%clk 0:00:42.1]} 37... Kg7 {[%clk 0:00:09.3]} 38. Bd6 {[%clk 0:00:40.5]} 38...
Kf6 {[%clk 0:00:09.7]} 39. Kf1 {[%clk 0:00:39.3]} 39... b5 {[%clk 0:00:08.1]}
40. Ke2 {[%clk 0:00:35.3]} 40... h6 {[%clk 0:00:08.3]} 41. Kd2 {[%clk 0:00:35]}
41... g5 {[%clk 0:00:08.5]} 42. hxg5+ {[%clk 0:00:34.2]} 42... hxg5 {[%clk
0:00:09.4]} 43. Kc3 {[%clk 0:00:32.6]} 43... a5 {[%clk 0:00:09.8]} 44. Bc8
{[%clk 0:00:20]} 44... b4+ {[%clk 0:00:05.4]} 45. axb4 {[%clk 0:00:19.1]} 45...
Nb5+ {[%clk 0:00:05.3]} 46. Kd2 {[%clk 0:00:15.9]} 46... Nxd6 {[%clk 0:00:06]}
47. Bxe6 {[%clk 0:00:15.4]} 47... Kxe6 {[%clk 0:00:06]} 48. bxa5 {[%clk
0:00:15.6]} 48... Nc4+ {[%clk 0:00:06.3]} 49. Kc3 {[%clk 0:00:14.8]} 49... Nxe5
{[%clk 0:00:06.5]} 50. dxe5 {[%clk 0:00:14.2]} 50... Kxe5 {[%clk 0:00:07.4]} 51.
Kb4 {[%clk 0:00:13.5]} 51... Bb7 {[%clk 0:00:07.2]} 52. Kc5 {[%clk 0:00:13.5]}
52... Ba6 {[%clk 0:00:04.3]} 53. Kb6 {[%clk 0:00:12.5]} 53... Be2 {[%clk
0:00:02.8]} 54. a6 {[%clk 0:00:12.8]} 54... Bxa6 {[%clk 0:00:02.8]} 55. Kxa6
{[%clk 0:00:13]} 55... f4 {[%clk 0:00:03.4]} 56. gxf4+ {[%clk 0:00:11.9]} 56...
gxf4 {[%clk 0:00:04.3]} 57. Kb5 {[%clk 0:00:11.9]} 57... f3 {[%clk 0:00:03.8]}
58. Kc4 {[%clk 0:00:11.5]} 58... Kf5 {[%clk 0:00:03.4]} 59. Kd4 {[%clk
0:00:11.2]} 59... Kg5 {[%clk 0:00:04]} 60. Kxe4 {[%clk 0:00:11.4]} 60... Kg4
{[%clk 0:00:04.3]} 61. Kd3 {[%clk 0:00:07.1]} 61... Kh3 {[%clk 0:00:04.4]} 62.
e4 {[%clk 0:00:07.3]} 62... Kg2 {[%clk 0:00:05]} 63. Ke3 {[%clk 0:00:07.5]} 1-0

[Event "Early-Titled-Tuesday-Blitz-October-03-2023"]
[Site "Chess.com"]
[Date "2023.10.03"]
[Round "1"]
[White "themind1hunter"]
[Black "ChampStan"]
[Result "1-0"]
[WhiteElo "2542"]
[BlackElo "2123"]
[TimeControl "180+1"]
[EndTime "8:08:35 PDT"]
[Termination "themind1hunter won by checkmate"]

1. e4 {[%clk 0:02:48.1]} 1... c5 {[%clk 0:02:59.4]} 2. Nf3 {[%clk 0:02:47.6]}
2... d6 {[%clk 0:02:59.6]} 3. d4 {[%clk 0:02:45.7]} 3... cxd4 {[%clk 0:02:58.8]}
4. Nxd4 {[%clk 0:02:46.6]} 4... Nf6 {[%clk 0:02:56.1]} 5. Nc3 {[%clk 0:02:45.8]}
5... a6 {[%clk 0:02:55.4]} 6. Be3 {[%clk 0:02:42.8]} 6... b5 {[%clk 0:02:54.7]}
7. a4 {[%clk 0:02:06.3]} 7... b4 {[%clk 0:02:52.3]} 8. Nd5 {[%clk 0:02:04.7]}
8... Nxd5 {[%clk 0:02:49.8]} 9. exd5 {[%clk 0:01:54]} 9... Bb7 {[%clk
0:02:45.4]} 10. Be2 {[%clk 0:01:31.1]} 10... Bxd5 {[%clk 0:02:38.8]} 11. Bf3
{[%clk 0:01:31.1]} 11... Bxf3 {[%clk 0:02:26.1]} 12. Qxf3 {[%clk 0:01:32]} 12...
Nd7 {[%clk 0:02:13.4]} 13. Nc6 {[%clk 0:01:16.3]} 13... Qc7 {[%clk 0:01:55.9]}
14. Nxe7 {[%clk 0:01:10.8]} 14... Bxe7 {[%clk 0:01:01.4]} 15. Qxa8+ {[%clk
0:01:08]} 15... Bd8 {[%clk 0:01:00.9]} 16. Qe4+ {[%clk 0:01:02.2]} 16... Be7
{[%clk 0:00:56.4]} 17. O-O {[%clk 0:01:01.2]} 17... Qc8 {[%clk 0:00:51.7]} 18.
Bg5 {[%clk 0:00:58.6]} 18... f6 {[%clk 0:00:49.8]} 19. Rfe1 {[%clk 0:00:46.2]}
19... Ne5 {[%clk 0:00:45.9]} 20. f4 {[%clk 0:00:45]} 20... fxg5 {[%clk
0:00:30.6]} 21. fxe5 {[%clk 0:00:44.9]} 21... Qc5+ {[%clk 0:00:25.5]} 22. Qe3
{[%clk 0:00:38]} 22... Qxe3+ {[%clk 0:00:17.7]} 23. Rxe3 {[%clk 0:00:38.9]}
23... d5 {[%clk 0:00:17.5]} 24. Rf3 {[%clk 0:00:33.3]} 24... Bc5+ {[%clk
0:00:16.3]} 25. Kf1 {[%clk 0:00:28]} 25... Ke7 {[%clk 0:00:16.2]} 26. Rf5 {[%clk
0:00:13.7]} 26... Bd4 {[%clk 0:00:15.5]} 27. Rd1 {[%clk 0:00:12.3]} 27... Bxb2
{[%clk 0:00:14.4]} 28. Rxg5 {[%clk 0:00:11.6]} 28... g6 {[%clk 0:00:13.6]} 29.
Rxd5 {[%clk 0:00:10.4]} 29... Rc8 {[%clk 0:00:13.1]} 30. Rg3 {[%clk 0:00:04.1]}
30... Rxc2 {[%clk 0:00:13]} 31. Rh3 {[%clk 0:00:03.4]} 31... Ke6 {[%clk
0:00:12.2]} 32. Ra5 {[%clk 0:00:03.5]} 32... Rc1+ {[%clk 0:00:10.8]} 33. Ke2
{[%clk 0:00:03.4]} 33... Bxe5 {[%clk 0:00:10.2]} 34. Rxh7 {[%clk 0:00:02.9]}
34... Rc2+ {[%clk 0:00:08.9]} 35. Kd3 {[%clk 0:00:02.8]} 35... Rc3+ {[%clk
0:00:07.5]} 36. Ke4 {[%clk 0:00:03.2]} 36... Rc4+ {[%clk 0:00:07.4]} 37. Kd3
{[%clk 0:00:03]} 37... Rd4+ {[%clk 0:00:06.3]} 38. Ke3 {[%clk 0:00:02.7]} 38...
Rc4 {[%clk 0:00:03.6]} 39. Rb7 {[%clk 0:00:03]} 39... Rc3+ {[%clk 0:00:03.5]}
40. Ke4 {[%clk 0:00:03.2]} 40... Rc4+ {[%clk 0:00:03.3]} 41. Kf3 {[%clk
0:00:03.9]} 41... Rc3+ {[%clk 0:00:03.3]} 42. Ke2 {[%clk 0:00:04]} 42... Rb3
{[%clk 0:00:03.6]} 43. Rb6+ {[%clk 0:00:03.7]} 43... Kf5 {[%clk 0:00:03.7]} 44.
g4+ {[%clk 0:00:02.1]} 44... Ke4 {[%clk 0:00:03]} 45. Re6 {[%clk 0:00:02.1]}
45... Rb2+ {[%clk 0:00:03.3]} 46. Kd1 {[%clk 0:00:02.2]} 46... Rb1+ {[%clk
0:00:03.1]} 47. Kc2 {[%clk 0:00:02.8]} 47... Rb2+ {[%clk 0:00:03.3]} 48. Kc1
{[%clk 0:00:03.4]} 48... Rxh2 {[%clk 0:00:02.8]} 49. Rexe5+ {[%clk 0:00:03.8]}
49... Kf4 {[%clk 0:00:03]} 50. Re6 {[%clk 0:00:03.4]} 50... g5 {[%clk
0:00:02.7]} 51. Rf6+ {[%clk 0:00:02.9]} 51... Kxg4 {[%clk 0:00:03]} 52. Rg6
{[%clk 0:00:03.6]} 52... Rh1+ {[%clk 0:00:03.2]} 53. Kb2 {[%clk 0:00:03.7]}
53... Rh2+ {[%clk 0:00:03]} 54. Kb3 {[%clk 0:00:04.1]} 54... Rh3+ {[%clk
0:00:02.8]} 55. Kxb4 {[%clk 0:00:04.5]} 55... Rd3 {[%clk 0:00:02.7]} 56. Raxg5+
{[%clk 0:00:04.3]} 56... Kf4 {[%clk 0:00:03.1]} 57. Ka5 {[%clk 0:00:04.9]} 57...
Rd4 {[%clk 0:00:03]} 58. Rg4+ {[%clk 0:00:04.7]} 58... Ke3 {[%clk 0:00:02.7]}
59. Rxd4 {[%clk 0:00:05.6]} 59... Kxd4 {[%clk 0:00:03.6]} 60. Kxa6 {[%clk
0:00:06.1]} 60... Kc5 {[%clk 0:00:03.9]} 61. Kb7 {[%clk 0:00:05.8]} 61... Kb4
{[%clk 0:00:04.3]} 62. Rg4+ {[%clk 0:00:06.6]} 62... Ka5 {[%clk 0:00:04.3]} 63.
Kc7 {[%clk 0:00:06.2]} 63... Ka6 {[%clk 0:00:04.4]} 64. Rg5 {[%clk 0:00:06.6]}
64... Ka7 {[%clk 0:00:04.2]} 65. Ra5# {[%clk 0:00:07.3]} 1-0

[Event "Early-Titled-Tuesday-Blitz-October-03-2023"]
[Site "Chess.com"]
[Date "2023.10.03"]
[Round "1"]
[White "zimmm36"]
[Black "slorovel"]
[Result "0-1"]
[WhiteElo "2768"]
[BlackElo "2464"]
[TimeControl "180+1"]
[EndTime "8:08:36 PDT"]
[Termination "slorovel won by resignation"]

1. c4 {[%clk 0:02:54.4]} 1... e5 {[%clk 0:02:59.3]} 2. g3 {[%clk 0:02:54.4]}
2... Nf6 {[%clk 0:02:56.2]} 3. Bg2 {[%clk 0:02:54.2]} 3... Bc5 {[%clk
0:02:54.7]} 4. Nc3 {[%clk 0:02:51.5]} 4... d6 {[%clk 0:02:54.9]} 5. e3 {[%clk
0:02:50.7]} 5... O-O {[%clk 0:02:55.4]} 6. Nge2 {[%clk 0:02:50.7]} 6... a6
{[%clk 0:02:54.6]} 7. O-O {[%clk 0:02:49.8]} 7... Nc6 {[%clk 0:02:54.9]} 8. d4
{[%clk 0:02:48.4]} 8... exd4 {[%clk 0:02:55.8]} 9. exd4 {[%clk 0:02:49.2]} 9...
Bb6 {[%clk 0:02:55.1]} 10. h3 {[%clk 0:02:49]} 10... Bf5 {[%clk 0:02:54.2]} 11.
Be3 {[%clk 0:02:48.4]} 11... Re8 {[%clk 0:02:52.5]} 12. g4 {[%clk 0:02:48.8]}
12... Bg6 {[%clk 0:02:52]} 13. Ng3 {[%clk 0:02:48.1]} 13... Nb4 {[%clk
0:02:45.6]} 14. g5 {[%clk 0:02:35.3]} 14... Nd7 {[%clk 0:02:42.3]} 15. h4 {[%clk
0:02:23.6]} 15... Bd3 {[%clk 0:02:31.2]} 16. Re1 {[%clk 0:02:19.9]} 16... Bxc4
{[%clk 0:02:30.6]} 17. Qa4 {[%clk 0:02:14.6]} 17... c5 {[%clk 0:02:16.2]} 18.
dxc5 {[%clk 0:02:10.4]} 18... Bxc5 {[%clk 0:02:12.6]} 19. Bxc5 {[%clk
0:02:03.1]} 19... dxc5 {[%clk 0:02:12.5]} 20. Bxb7 {[%clk 0:02:02.9]} 20... Rb8
{[%clk 0:02:12.3]} 21. Rxe8+ {[%clk 0:01:46.5]} 21... Qxe8 {[%clk 0:02:12.2]}
22. Bc6 {[%clk 0:01:47.1]} 22... Nxc6 {[%clk 0:02:07.1]} 23. Qxc6 {[%clk
0:01:38.3]} 23... Rc8 {[%clk 0:02:02.8]} 24. Qd6 {[%clk 0:01:36.1]} 24... Ne5
{[%clk 0:02:02.6]} 25. Nce4 {[%clk 0:01:28]} 25... Nf3+ {[%clk 0:01:54.5]} 26.
Kh1 {[%clk 0:01:28.1]} 26... Nxh4 {[%clk 0:01:52.1]} 27. Qf4 {[%clk 0:01:24.8]}
27... Ng6 {[%clk 0:01:50.7]} 28. Qg4 {[%clk 0:01:24.7]} 28... Bd5 {[%clk
0:01:50.2]} 29. Re1 {[%clk 0:01:22.8]} 29... Ne5 {[%clk 0:01:44.5]} 30. Qf5
{[%clk 0:01:18.5]} 30... Qe6 {[%clk 0:01:40.7]} 31. Qxe6 {[%clk 0:01:02.4]}
31... fxe6 {[%clk 0:01:40.7]} 32. Kg2 {[%clk 0:00:59.7]} 32... Nd3 {[%clk
0:01:39.5]} 33. Re3 {[%clk 0:00:54.2]} 33... Nxb2 {[%clk 0:01:36.7]} 34. f3
{[%clk 0:00:54.2]} 34... Nc4 {[%clk 0:01:35.7]} 35. Rc3 {[%clk 0:00:53.4]} 35...
Ne5 {[%clk 0:01:30.6]} 36. Rxc5 {[%clk 0:00:42.9]} 36... Rxc5 {[%clk 0:01:29.7]}
37. Nxc5 {[%clk 0:00:43.8]} 37... Nxf3 {[%clk 0:01:29.6]} 38. Kf2 {[%clk
0:00:30.6]} 38... Nxg5 {[%clk 0:01:29.3]} 39. a4 {[%clk 0:00:30.8]} 39... Bc6
{[%clk 0:01:23.3]} 40. a5 {[%clk 0:00:29.4]} 40... Bb5 {[%clk 0:01:23.5]} 41.
Ke3 {[%clk 0:00:23.7]} 41... Kf7 {[%clk 0:01:22.9]} 42. Ne2 {[%clk 0:00:23.2]}
42... e5 {[%clk 0:01:21.3]} 43. Nc3 {[%clk 0:00:20.5]} 43... Bc4 {[%clk
0:01:16.7]} 44. N3a4 {[%clk 0:00:20.7]} 44... Ne6 {[%clk 0:01:15.8]} 45. Nb7
{[%clk 0:00:18.7]} 45... Bb5 {[%clk 0:01:14.1]} 46. Nd6+ {[%clk 0:00:18.5]}
46... Ke7 {[%clk 0:01:11.5]} 47. Nxb5 {[%clk 0:00:18.8]} 47... axb5 {[%clk
0:01:12.4]} 48. Nb6 {[%clk 0:00:19.2]} 48... Nc5 {[%clk 0:01:10.7]} 49. Nd5+
{[%clk 0:00:16.9]} 49... Kd6 {[%clk 0:01:10.1]} 50. Nb4 {[%clk 0:00:17.8]} 50...
h5 {[%clk 0:01:00.9]} 51. Kf3 {[%clk 0:00:15.4]} 51... g5 {[%clk 0:00:59.3]} 52.
Kg3 {[%clk 0:00:13.8]} 52... e4 {[%clk 0:00:57.9]} 53. Kf2 {[%clk 0:00:13.1]}
53... g4 {[%clk 0:00:56.4]} 54. Kg3 {[%clk 0:00:13.3]} 54... e3 {[%clk
0:00:56.7]} 55. a6 {[%clk 0:00:13.2]} 55... Kc7 {[%clk 0:00:50.7]} 56. Nd5+
{[%clk 0:00:13.7]} 56... Kc6 {[%clk 0:00:49.5]} 57. Nxe3 {[%clk 0:00:14.6]}
57... Kb6 {[%clk 0:00:48.6]} 58. Kh4 {[%clk 0:00:15.1]} 58... Kxa6 {[%clk
0:00:30.9]} 59. Kxh5 {[%clk 0:00:15.3]} 59... g3 {[%clk 0:00:31.5]} 60. Kg4
{[%clk 0:00:15.7]} 60... b4 {[%clk 0:00:29.3]} 61. Kxg3 {[%clk 0:00:14.9]} 61...
b3 {[%clk 0:00:29.5]} 62. Nd1 {[%clk 0:00:15]} 62... Kb5 {[%clk 0:00:28.4]} 63.
Kf3 {[%clk 0:00:15.3]} 63... Kc4 {[%clk 0:00:29.3]} 64. Ke3 {[%clk 0:00:15.5]}
64... Nd3 {[%clk 0:00:28.7]} 65. Kd2 {[%clk 0:00:15.6]} 65... Nb4 {[%clk
0:00:28.9]} 66. Nb2+ {[%clk 0:00:15]} 66... Kd4 {[%clk 0:00:29.3]} 67. Nd1
{[%clk 0:00:15]} 67... Nd3 {[%clk 0:00:28.9]} 68. Ke2 {[%clk 0:00:15.6]} 68...
Kc4 {[%clk 0:00:28.3]} 69. Kd2 {[%clk 0:00:16]} 69... Nc5 {[%clk 0:00:28.7]} 70.
Nb2+ {[%clk 0:00:15.8]} 70... Kb4 {[%clk 0:00:29]} 71. Kc1 {[%clk 0:00:16.4]}
71... Ka3 {[%clk 0:00:29.3]} 72. Kb1 {[%clk 0:00:16.5]} 72... Ne4 {[%clk
0:00:27.5]} 73. Nc4+ {[%clk 0:00:16.5]} 73... Kb4 {[%clk 0:00:26.9]} 74. Ne3
{[%clk 0:00:17]} 74... Kc3 {[%clk 0:00:26]} 75. Nd5+ {[%clk 0:00:17.4]} 75...
Kc4 {[%clk 0:00:26.3]} 76. Kb2 {[%clk 0:00:17.1]} 76... Nc5 {[%clk 0:00:24.8]}
77. Ne3+ {[%clk 0:00:17.3]} 77... Kb4 {[%clk 0:00:25.4]} 78. Nd5+ {[%clk
0:00:17.6]} 78... Kc4 {[%clk 0:00:25.7]} 79. Ne3+ {[%clk 0:00:17.9]} 79... Kd3
{[%clk 0:00:26.2]} 80. Nf5 {[%clk 0:00:17.6]} 80... Kc4 {[%clk 0:00:25.3]} 81.
Nd6+ {[%clk 0:00:17.8]} 81... Kb4 {[%clk 0:00:25.3]} 82. Nc8 {[%clk 0:00:17.8]}
82... Na4+ {[%clk 0:00:26.2]} 83. Kb1 {[%clk 0:00:16.9]} 83... Ka3 {[%clk
0:00:24.8]} 84. Nd6 {[%clk 0:00:16.5]} 84... Nc3+ {[%clk 0:00:25.5]} 85. Kc1
{[%clk 0:00:17.1]} 85... b2+ {[%clk 0:00:26.4]} 86. Kc2 {[%clk 0:00:17.9]} 86...
b1=Q+ {[%clk 0:00:26.8]} 0-1